bitfinex/quotes_ETHUSD_20250608
["timestamp","ask_amount","ask_price","bid_price","bid_amount"]
[1749369130689,5.08457175,2516.0,2515.9,10.35770348]
[1749369131092,3.89406416,2516.0,2515.9,10.35770348]
[1749369131294,5.08457175,2516.0,2515.9,10.35770348]
[1749369139995,22.26557175,2516.0,2515.9,10.35770348]
[1749369149452,21.07506416,2516.0,2515.9,10.35770348]
[1749369149751,22.26663596,2516.0,2515.9,10.35770348]
[1749369150026,21.07506416,2516.0,2515.9,10.35770348]
[1749369150236,22.26666177,2516.0,2515.9,10.35770348]
[1749369150439,21.07506416,2516.0,2515.9,10.35770348]
[1749369150916,22.26666162,2516.0,2515.9,10.35770348]
[1749369151239,21.07506416,2516.0,2515.9,3.97470348]
[1749369151400,22.26664854,2516.0,2515.9,10.35770348]
[1749369151724,21.07506416,2516.0,2515.9,10.35770348]
[1749369157152,22.26706108,2516.0,2515.9,10.35770348]
[1749369157345,21.07506416,2516.0,2515.9,10.35770348]
[1749369158151,21.07627945,2516.0,2515.9,10.35770348]
[1749369158463,18.68462136,2516.0,2515.9,10.35770348]
[1749369159126,21.49768283,2516.0,2515.9,10.35770348]
[1749369159326,20.30562136,2516.0,2515.9,10.35770348]
[1749369159522,18.68462136,2516.0,2515.9,10.35770348]
[1749369159846,20.30562136,2516.0,2515.9,10.35770348]
[1749369160273,21.49765445,2516.0,2515.9,10.35770348]
[1749369160473,20.30562136,2516.0,2515.9,10.35770348]
[1749369160876,21.49766503,2516.0,2515.9,10.35770348]
[1749369161065,22.61422719,2516.0,2515.9,10.35770348]
[1749369168110,22.61424115,2516.0,2515.9,10.35770348]
[1749369172203,20.99324115,2516.0,2515.9,10.35770348]
[1749369172403,22.61424115,2516.0,2515.9,10.35770348]
[1749369180187,20.30563532,2516.0,2515.9,10.35770348]
[1749369182984,21.49756941,2516.0,2515.9,10.35770348]
[1749369183188,20.30563532,2516.0,2515.9,10.35770348]
[1749369183895,0.55,2515.8,2515.2,0.7564]
[1749369184207,0.55,2515.6,2515.5,3.97521839]
[1749369184407,1.50363532,2515.6,2515.5,10.35821839]
[1749369187990,3.12463532,2515.6,2515.5,10.35821839]
[1749369192831,20.30763532,2515.6,2515.5,10.35821839]
[1749369199645,19.354,2515.6,2515.5,10.35821839]
[1749369199843,20.3066188,2515.6,2515.5,10.35821839]
[1749369201470,18.1356188,2515.6,2515.5,10.35821839]
[1749369201794,19.7566188,2515.6,2515.5,10.35821839]
[1749369213284,19.7566188,2515.6,2515.5,3.97521839]
[1749369213463,19.7566188,2515.6,2515.5,10.35821839]
[1749369214462,19.7566188,2515.6,2515.5,3.97521839]
[1749369214662,19.7566188,2515.6,2515.5,10.35821839]
[1749369217302,20.3066188,2515.6,2515.5,10.35821839]
[1749369221218,21.1168188,2515.6,2515.5,10.35821839]
[1749369221396,23.34757803,2515.6,2515.5,10.35821839]
[1749369221996,22.53737803,2515.6,2515.5,10.35821839]
[1749369222619,22.53737803,2515.6,2515.5,10.35835281]
[1749369225313,18.6856188,2515.6,2515.5,10.35835281]
[1749369225513,19.7566188,2515.6,2515.5,10.35835281]
[1749369228218,18.804,2515.6,2515.5,10.35835281]
[1749369228405,19.75779454,2515.6,2515.5,10.35835281]
[1749369229816,19.75779454,2515.6,2515.5,3.97535281]
[1749369229817,20.30779454,2515.6,2515.5,3.97535281]
[1749369230018,22.53780831,2515.6,2515.5,10.35835281]
[1749369232613,22.53780831,2515.6,2515.5,3.97535281]
[1749369232925,22.53780831,2515.6,2515.5,10.35835281]
[1749369235320,20.30779454,2515.6,2515.5,10.35835281]
[1749369240270,20.30779454,2515.6,2515.5,13.31708605]
[1749369241051,19.75779454,2515.6,2515.5,13.31708605]
[1749369248895,18.13679454,2515.6,2515.5,13.31708605]
[1749369249093,19.75779454,2515.6,2515.5,13.31708605]
[1749369262683,2.57479454,2515.6,2515.5,13.31708605]
[1749369266581,0.95379454,2515.6,2515.5,13.31708605]
[1749369266884,2.57379454,2515.6,2515.5,13.31708605]
[1749369273313,0.95379454,2515.6,2515.5,13.31708605]
[1749369273514,2.57379454,2515.6,2515.5,13.31708605]
[1749369274713,0.95379454,2515.6,2515.5,13.31708605]
[1749369274879,2.57379454,2515.6,2515.5,13.31708605]
[1749369277498,0.95379454,2515.6,2515.5,13.31708605]
[1749369277681,2.57379454,2515.6,2515.5,13.31708605]
[1749369282596,0.95379454,2515.6,2515.5,13.31708605]
[1749369282807,2.57379454,2515.6,2515.5,13.31708605]
[1749369288425,2.57385973,2515.6,2515.5,13.31708605]
[1749369292225,0.95385973,2515.6,2515.5,13.31708605]
[1749369292413,2.57385973,2515.6,2515.5,13.31708605]
[1749369296526,2.57385973,2515.6,2515.5,10.35835281]
[1749369296829,4.74447817,2515.6,2515.5,10.35835281]
[1749369297419,2.57385973,2515.6,2515.5,10.35835281]
[1749369301632,2.57385973,2515.6,2515.5,10.35735281]
[1749369308240,3.34715973,2515.6,2515.5,10.35735281]
[1749369309338,3.89715973,2515.6,2515.5,10.35735281]
[1749369322252,5.08948439,2515.6,2515.5,10.35735281]
[1749369322431,7.4757506,2515.6,2515.5,10.35735281]
[1749369322635,6.28342594,2515.6,2515.5,10.35735281]
[1749369322836,7.4757506,2515.6,2515.5,10.35735281]
[1749369323060,6.28342594,2515.6,2515.5,10.35735281]
[1749369323259,7.4757506,2515.6,2515.5,10.35735281]
[1749369323459,6.28342594,2515.6,2515.5,10.35735281]
[1749369323661,7.4757506,2515.6,2515.5,10.35735281]
[1749369323867,6.28342594,2515.6,2515.5,10.35735281]
[1749369324072,7.4757506,2515.6,2515.5,10.35735281]
[1749369324267,6.28342594,2515.6,2515.5,10.35735281]
[1749369324471,7.4757506,2515.6,2515.5,10.35735281]
[1749369324672,6.28342594,2515.6,2515.5,10.35735281]
[1749369327077,5.32956621,2515.6,2515.5,10.35735281]
[1749369327282,6.28334396,2515.6,2515.5,10.35735281]
[1749369327646,6.28334396,2515.6,2515.5,3.97535281]
[1749369327846,6.28334396,2515.6,2515.5,10.35735281]
[1749369328278,7.47556614,2515.6,2515.5,10.35735281]
[1749369334198,7.47556614,2515.6,2515.5,3.97535281]
[1749369334490,7.47556614,2515.6,2515.5,10.35735281]
[1749369337186,1.3805,2515.4,2515.3,3.97553733]
[1749369337487,3.52599741,2515.4,2515.3,10.35753733]
[1749369337690,3.52572979,2515.4,2515.3,10.35753733]
[1749369339904,3.52572979,2515.4,2515.3,3.97553733]
[1749369340081,4.46168616,2515.4,2515.3,10.35753733]
[1749369342796,4.46168616,2515.4,2515.3,6.383]
[1749369342960,4.46168616,2515.4,2515.3,10.3586689]
[1749369346897,21.64768616,2515.4,2515.3,10.3586689]
[1749369347398,20.45623412,2515.4,2515.3,10.3586689]
[1749369348007,20.45623412,2515.4,2515.3,13.31740214]
[1749369348174,21.64768616,2515.4,2515.3,13.31740214]
[1749369348379,20.45623412,2515.4,2515.3,13.31740214]
[1749369348580,21.64528779,2515.4,2515.3,13.31740214]
[1749369348893,20.45482589,2515.4,2515.3,13.31740214]
[1749369349110,21.64528779,2515.4,2515.3,13.31740214]
[1749369349720,20.45482589,2515.4,2515.3,13.31740214]
[1749369350018,21.64528779,2515.4,2515.3,13.31740214]
[1749369350316,20.45482589,2515.4,2515.3,13.31740214]
[1749369350676,20.81478779,2515.4,2515.3,13.31740214]
[1749369350881,19.62432589,2515.4,2515.3,13.31740214]
[1749369351715,20.81478779,2515.4,2515.3,13.31740214]
[1749369351898,19.62432589,2515.4,2515.3,13.31740214]
[1749369352082,20.81478779,2515.4,2515.3,13.31740214]
[1749369352417,19.62432589,2515.4,2515.3,13.31740214]
[1749369352613,20.81478779,2515.4,2515.3,13.31740214]
[1749369352918,19.62432589,2515.4,2515.3,13.31740214]
[1749369353085,19.87883142,2515.4,2515.3,13.31740214]
[1749369353286,18.68836952,2515.4,2515.3,13.31740214]
[1749369353899,19.87883142,2515.4,2515.3,13.31740214]
[1749369354625,18.68836952,2515.4,2515.3,13.31740214]
[1749369355121,19.87883142,2515.4,2515.3,13.31740214]
[1749369355414,19.75836952,2515.4,2515.3,13.31740214]
[1749369357922,19.75836952,2515.4,2515.3,10.3586689]
[1749369364691,18.13836952,2515.4,2515.3,10.3586689]
[1749369364892,19.75836952,2515.4,2515.3,10.3586689]
[1749369370439,18.13936226,2515.4,2515.3,10.3586689]
[1749369370640,19.75936226,2515.4,2515.3,11.1244689]
[1749369371322,18.13936226,2515.4,2515.3,11.1244689]
[1749369371527,19.75936226,2515.4,2515.3,11.1244689]
[1749369376846,18.13936226,2515.4,2515.3,11.1244689]
[1749369377033,19.75936226,2515.4,2515.3,11.1244689]
[1749369379169,0.95336226,2515.4,2515.3,11.1244689]
[1749369379321,2.57336226,2515.4,2515.3,11.1244689]
[1749369379646,2.57328328,2515.4,2515.3,11.1244689]
[1749369385582,0.95328328,2515.4,2515.3,11.1244689]
[1749369385742,2.57328328,2515.4,2515.3,11.1244689]
[1749369390885,0.95328328,2515.4,2515.3,10.3586689]
[1749369391058,2.57328328,2515.4,2515.3,10.3586689]
[1749369396190,2.57425584,2515.4,2515.3,10.3586689]
[1749369402862,2.57425584,2515.4,2515.3,10.3576689]
[1749369403063,0.95425584,2515.4,2515.3,10.3576689]
[1749369403374,2.57425584,2515.4,2515.3,10.3576689]
[1749369404266,0.95425584,2515.4,2515.3,10.3576689]
[1749369404602,2.57425584,2515.4,2515.3,10.3576689]
[1749369408673,2.57435852,2515.4,2515.3,10.3576689]
[1749369416384,5.29654919,2515.4,2515.3,3.9756689]
[1749369416587,6.06844919,2515.4,2515.3,10.3576689]
[1749369423545,6.06844919,2515.4,2514.7,0.8192]
[1749369423546,0.8182,2515.2,2514.7,0.8192]
[1749369423747,0.95435852,2515.1,2515.0,3.97614314]
[1749369424043,0.7838,2515.0,2514.7,3.97651023]
[1749369424253,0.95435852,2514.9,2514.8,6.382]
[1749369424440,2.93047328,2514.9,2514.8,6.382]
[1749369424735,0.55,2514.8,2514.7,3.97658315]
[1749369425041,4.82361656,2514.8,2514.7,6.382]
[1749369425243,4.4151018,2514.8,2514.4,2.95873324]
[1749369425399,0.55,2514.6,2514.5,10.35880539]
[1749369425607,0.55,2514.4,2514.1,3.97746495]
[1749369425799,0.7838,2514.5,2514.1,3.97746495]
[1749369425800,0.55,2514.2,2514.1,3.97746495]
[1749369426000,0.7838,2514.1,2513.4,3.97853762]
[1749369426195,3.53529437,2514.2,2512.7,4.48964285]
[1749369426196,0.55,2513.8,2513.3,6.394]
[1749369426427,2.17,2513.7,2513.6,3.97835773]
[1749369426626,2.17,2513.7,2513.6,6.93709097]
[1749369426953,2.17,2513.7,2513.6,13.33209097]
[1749369427240,1.19231476,2514.3,2514.0,16.0]
[1749369427439,1.62,2514.9,2514.8,3.97645936]
[1749369427601,1.62,2514.9,2514.7,3.97660079]
[1749369427602,2.84999706,2514.9,2514.7,3.97654011]
[1749369427939,2.4038,2514.9,2514.8,10.44145936]
[1749369428252,2.9538,2514.9,2514.8,10.44145936]
[1749369428930,1.52034579,2514.9,2514.8,10.44145936]
[1749369429130,3.14034579,2514.9,2514.8,10.44145936]
[1749369431557,2.9538,2514.9,2514.8,10.44145936]
[1749369432053,0.8116,2515.4,2515.3,3.9756689]
[1749369432255,5.18061905,2515.4,2515.3,3.9756689]
[1749369432645,5.73061905,2515.4,2515.3,3.9756689]
[1749369435156,0.55,2515.3,2515.1,10.43998505]
[1749369435358,2.32722757,2515.2,2515.1,10.43998505]
[1749369436542,3.94722757,2515.2,2515.1,10.43998505]
[1749369436742,4.52198948,2515.2,2515.1,10.43998505]
[1749369437367,4.52198948,2515.2,2515.1,3.97598505]
[1749369437568,4.52198948,2515.2,2515.1,6.464]
[1749369437863,4.52198948,2515.2,2515.0,3.97605996]
[1749369438029,3.57336191,2515.2,2515.1,3.97598505]
[1749369438234,4.52218696,2515.2,2515.1,3.97598505]
[1749369448647,4.56518696,2515.2,2515.1,3.97598505]
[1749369449755,4.93762214,2515.2,2515.1,3.97598505]
[1749369450083,3.27462247,2515.2,2515.1,3.97598505]
[1749369450248,1.49882505,2515.2,2515.1,3.97598505]
[1749369450584,3.16182505,2515.2,2515.1,8.04754331]
[1749369450797,1.19231476,2515.6,2515.4,3.97551085]
[1749369451085,17.9445,2515.7,2515.6,3.97519478]
[1749369451086,19.13681476,2515.7,2515.6,3.97519478]
[1749369451389,24.19586889,2515.7,2515.6,3.97519478]
[1749369451549,24.74585787,2515.7,2515.6,3.97519478]
[1749369451959,24.74586711,2515.7,2515.6,3.97519478]
[1749369452158,24.373411,2515.7,2515.6,3.97519478]
[1749369452547,24.74586362,2515.7,2515.6,3.97519478]
[1749369452885,24.373411,2515.7,2515.6,3.97519478]
[1749369453249,24.74586346,2515.7,2515.6,3.97519478]
[1749369453852,24.74587015,2515.7,2515.6,3.97519478]
[1749369454049,24.373411,2515.7,2515.6,3.97519478]
[1749369454290,24.74586662,2515.7,2515.6,3.97519478]
[1749369454462,24.373411,2515.7,2515.6,3.97519478]
[1749369455991,24.373411,2515.7,2515.4,3.97544524]
[1749369455992,1.3032,2515.5,2515.3,10.4296162]
[1749369456289,1.3032,2515.5,2515.4,3.97551085]
[1749369456489,4.59554083,2515.5,2515.4,3.97551085]
[1749369456874,4.96794448,2515.5,2515.4,3.97551085]
[1749369457051,4.59554083,2515.5,2515.4,3.97551085]
[1749369457387,5.78331099,2515.5,2515.4,3.97551085]
[1749369458456,6.15571258,2515.5,2515.4,3.97551085]
[1749369458657,5.78331099,2515.5,2515.4,3.97551085]
[1749369461398,5.03011099,2515.5,2515.4,3.97551085]
[1749369465008,1.3775,2515.4,2514.8,0.8194]
[1749369465209,2.69037127,2515.3,2515.2,3.97571718]
[1749369466204,1.50082716,2515.3,2515.2,3.97571718]
[1749369468825,2.213,2515.3,2515.2,3.97571718]
[1749369469040,3.16475381,2515.3,2515.2,3.97571718]
[1749369469392,3.16475381,2515.3,2515.2,4.77981718]
[1749369469587,3.16485131,2515.3,2515.2,4.77981718]
[1749369475035,20.35185131,2515.3,2515.2,4.77981718]
[1749369479939,20.35185131,2515.3,2515.2,3.97571718]
[1749369483930,20.35302059,2515.3,2515.2,3.97571718]
[1749369485144,20.34602059,2515.3,2515.2,3.97571718]
[1749369490753,18.69002059,2515.3,2515.2,3.97571718]
[1749369491047,19.79602059,2515.3,2515.2,3.97571718]
[1749369491261,19.79602059,2515.3,2515.2,4.80811718]
[1749369496253,18.14002059,2515.3,2515.2,4.80811718]
[1749369496450,19.79602059,2515.3,2515.2,4.80811718]
[1749369496655,18.843,2515.3,2515.2,4.80811718]
[1749369497429,19.79567453,2515.3,2515.2,4.80811718]
[1749369502480,18.843,2515.3,2515.2,4.80811718]
[1749369504346,19.79565074,2515.3,2515.2,4.80811718]
[1749369504541,19.79565074,2515.3,2515.2,3.97571718]
[1749369506694,20.34565074,2515.3,2515.2,3.97571718]
[1749369506891,22.45634581,2515.3,2515.2,10.40571718]
[1749369507098,20.34565074,2515.3,2515.2,10.40571718]
[1749369517098,19.78865074,2515.3,2515.2,14.47727544]
[1749369518088,18.13965074,2515.3,2515.2,14.47727544]
[1749369518293,19.78865074,2515.3,2515.2,14.47727544]
[1749369529043,19.78955453,2515.3,2515.2,14.47727544]
[1749369530927,18.836,2515.3,2515.2,14.47727544]
[1749369531228,18.836,2515.3,2515.2,30.47727544]
[1749369539138,17.187,2515.3,2515.2,30.47727544]
[1749369539312,18.83,2515.3,2515.2,30.47727544]
[1749369542839,1.643,2515.3,2515.2,30.47727544]
[1749369545325,1.643,2515.3,2515.2,32.3235755]
[1749369550657,17.183,2515.7,2515.6,3.97519478]
[1749369550834,19.7786615,2515.7,2515.6,13.35112394]
[1749369552615,18.1356615,2515.7,2515.6,13.35112394]
[1749369552821,18.826,2515.7,2515.6,13.35112394]
[1749369554584,17.183,2515.7,2515.6,29.35112394]
[1749369554748,18.826,2515.7,2515.6,30.13912394]
[1749369555273,18.826,2515.7,2515.6,31.24979435]
[1749369555794,17.183,2515.7,2515.6,35.31639392]
[1749369555952,18.826,2515.7,2515.6,35.31639392]
[1749369556375,18.826,2515.7,2515.6,31.24979435]
[1749369557486,18.826,2515.7,2515.6,35.31639392]
[1749369557882,18.826,2515.7,2515.6,31.24979435]
[1749369558192,18.826,2515.7,2515.6,35.31639392]
[1749369558400,17.183,2515.7,2515.6,35.31639392]
[1749369558695,18.826,2515.7,2515.6,35.31639392]
[1749369559075,17.183,2515.7,2515.6,35.31639392]
[1749369559471,17.183,2515.7,2515.6,35.70942472]
[1749369561500,0.7622,2516.5,2516.3,3.97406103]
[1749369561705,0.7622,2516.5,2516.4,14.45953058]
[1749369561898,2.4052,2516.5,2516.4,14.45953058]
[1749369562900,17.181,2516.7,2516.6,3.97361519]
[1749369563079,18.824,2516.7,2516.6,14.45821476]
[1749369581638,1.643,2516.7,2516.6,14.45821476]
[1749369584832,2.59504946,2516.7,2516.6,14.45821476]
[1749369585207,2.59504946,2516.7,2516.6,13.34787726]
[1749369586458,2.59504946,2516.7,2516.6,6.92987726]
[1749369586761,2.59504946,2516.7,2516.6,13.34587726]
[1749369586932,3.70447441,2516.7,2516.6,13.34587726]
[1749369587263,3.36874946,2516.7,2516.6,13.34587726]
[1749369589141,3.36983694,2516.7,2516.6,13.34587726]
[1749369594765,2.59613694,2516.7,2516.6,13.34587726]
[1749369596744,2.59672115,2516.7,2516.6,13.34587726]
[1749369597264,2.59672115,2516.7,2516.6,14.45394522]
[1749369600181,1.643,2516.7,2516.6,14.45394522]
[1749369601173,2.59654861,2516.7,2516.6,14.45394522]
[1749369606443,1.643,2516.7,2516.6,14.45394522]
[1749369606985,2.59624549,2516.7,2516.6,14.45394522]
[1749369607156,1.643,2516.7,2516.6,14.45394522]
[1749369608083,2.59621264,2516.7,2516.6,10.38261519]
[1749369609688,2.59621264,2516.7,2516.6,14.44694522]
[1749369613003,0.95321264,2516.7,2516.6,14.44694522]
[1749369613201,1.638,2516.7,2516.6,14.44694522]
[1749369617204,19.68162212,2517.2,2517.1,3.97282587]
[1749369617404,23.20790394,2517.2,2517.1,14.4461559]
[1749369621402,20.53081878,2517.2,2517.1,14.4461559]
[1749369621603,19.76511878,2517.2,2517.1,14.4461559]
[1749369622876,18.12711878,2517.2,2517.1,14.4461559]
[1749369623078,19.76511878,2517.2,2517.1,14.4461559]
[1749369624220,19.76511878,2517.2,2517.1,14.4441559]
[1749369625823,18.812,2517.2,2517.1,14.4441559]
[1749369626218,19.76396254,2517.2,2517.1,14.4441559]
[1749369626526,18.812,2517.2,2517.1,14.4441559]
[1749369630229,19.76353117,2517.2,2517.1,10.37682587]
[1749369630391,22.53005702,2517.2,2517.1,10.37682587]
[1749369639830,20.57963117,2517.2,2517.1,10.37682587]
[1749369640434,19.76353117,2517.2,2517.1,10.37682587]
[1749369641136,19.76353117,2517.2,2517.1,14.4411559]
[1749369642745,2.58953117,2517.2,2517.1,14.4411559]
[1749369648947,0.95153117,2517.2,2517.1,14.4411559]
[1749369649148,2.58553117,2517.2,2517.1,14.4411559]
[1749369649336,2.58684538,2517.2,2517.1,14.4411559]
[1749369649537,2.58684538,2517.2,2517.1,8.0371559]
[1749369649843,2.58684538,2517.2,2517.1,14.4351559]
[1749369651546,2.58684538,2517.2,2517.1,8.0371559]
[1749369651733,2.58684538,2517.2,2517.1,14.4351559]
[1749369652162,0.95284538,2517.2,2517.1,14.4341559]
[1749369652337,2.58684538,2517.2,2517.1,8.0371559]
[1749369652540,2.58684538,2517.2,2517.1,14.4341559]
[1749369654236,0.95284538,2517.2,2517.1,14.4341559]
[1749369654429,2.58684538,2517.2,2517.1,14.4341559]
[1749369656054,0.95284538,2517.2,2517.1,14.4341559]
[1749369656221,2.58684538,2517.2,2517.1,14.4341559]
[1749369657814,2.58684538,2517.2,2517.1,8.0371559]
[1749369658018,2.58684538,2517.2,2517.1,10.36882587]
[1749369663523,0.95284538,2517.2,2517.1,14.4331559]
[1749369663726,0.95284538,2517.2,2517.1,15.2470559]
[1749369663929,2.58084538,2517.2,2517.1,15.2470559]
[1749369671072,0.95284538,2517.2,2517.1,15.2470559]
[1749369671277,2.58084538,2517.2,2517.1,15.2470559]
[1749369673069,2.58084538,2517.2,2517.1,15.2430559]
[1749369675243,2.58084538,2517.2,2517.1,14.4291559]
[1749369691222,2.58084538,2517.2,2517.1,13.31968678]
[1749369693694,2.58084538,2517.2,2517.1,29.31968678]
[1749369694539,1.627,2517.2,2517.1,29.31968678]
[1749369694708,1.627,2517.2,2517.1,30.14648678]
[1749369703745,17.9983,2517.6,2517.5,3.97219463]
[1749369703955,20.57691774,2517.6,2517.5,10.36319463]
[1749369704139,1.58922949,2517.9,2517.5,30.11655554]
[1749369704316,3.96906179,2519.6,2518.5,4.187]
[1749369704512,0.1196728,2520.1,2519.8,19.98876893]
[1749369704822,23.85622766,2521.8,2519.8,19.98876893]
[1749369704823,0.3722205,2521.5,2521.4,3.9660506]
[1749369705021,0.3722205,2521.5,2521.4,14.91223634]
[1749369705226,2.3252205,2521.5,2521.4,13.46629822]
[1749369705428,2.3252205,2521.5,2521.4,27.8897158]
[1749369705650,2.3252205,2521.5,2521.4,29.0632956]
[1749369705835,0.3722205,2521.5,2521.4,29.45448887]
[1749369706036,0.3722205,2521.5,2521.4,33.50394687]
[1749369706234,0.3722205,2521.5,2521.4,31.9391738]
[1749369706437,0.3722205,2521.5,2521.4,33.10727665]
[1749369707349,0.3722205,2521.5,2521.4,37.30032933]
[1749369707510,0.3722205,2521.5,2521.4,36.13222648]
[1749369708310,2.3242205,2521.5,2521.4,36.13222648]
[1749369708714,2.3242205,2521.5,2521.4,36.11624173]
[1749369709527,2.3242205,2521.5,2521.4,19.9660506]
[1749369709766,2.3242205,2521.5,2521.4,26.9910506]
[1749369710061,2.64430947,2521.5,2521.4,19.9660506]
[1749369710224,2.64430947,2521.5,2521.4,26.9920506]
[1749369710732,2.3242205,2521.5,2521.4,26.9920506]
[1749369711333,2.3242205,2521.5,2521.4,27.0110506]
[1749369711568,2.3242205,2521.5,2521.4,11.0110506]
[1749369712134,2.3242205,2521.5,2521.4,3.9660506]
[1749369712329,2.3242205,2521.5,2521.4,11.0290506]
[1749369712849,2.3242205,2521.5,2521.4,3.9660506]
[1749369713053,2.3242205,2521.5,2521.4,11.0330506]
[1749369713363,2.3242205,2521.5,2521.4,3.9660506]
[1749369713566,2.3242205,2521.5,2521.4,11.0330506]
[1749369713868,2.3242205,2521.5,2521.4,3.9660506]
[1749369714067,2.3242205,2521.5,2521.4,11.0340506]
[1749369714370,2.3242205,2521.5,2521.4,3.9660506]
[1749369714666,2.3242205,2521.5,2521.4,11.0340506]
[1749369714871,2.3242205,2521.5,2521.4,11.0360506]
[1749369715065,2.3242205,2521.5,2521.4,3.9660506]
[1749369715275,2.3242205,2521.5,2521.4,11.0380506]
[1749369715448,2.3242205,2521.5,2521.4,3.9660506]
[1749369715636,2.3242205,2521.5,2521.4,11.0360506]
[1749369716545,0.3722205,2521.5,2521.4,11.0360506]
[1749369716852,2.4022205,2521.5,2521.4,11.0360506]
[1749369717057,2.4022205,2521.5,2521.4,3.9660506]
[1749369717280,2.4022205,2521.5,2521.4,11.0460506]
[1749369718470,2.4022205,2521.5,2521.4,11.63575882]
[1749369718767,2.4022205,2521.5,2521.4,11.63576129]
[1749369719071,2.4022205,2521.5,2521.4,11.26719086]
[1749369719269,2.4022205,2521.5,2521.4,11.0460506]
[1749369719480,2.4022205,2521.5,2521.4,3.9660506]
[1749369719643,2.4022205,2521.5,2521.4,11.0420506]
[1749369719839,3.48780947,2521.5,2521.2,3.96626216]
[1749369720069,3.48780947,2521.5,2520.8,3.96693382]
[1749369720070,3.48780947,2521.5,2521.3,3.96612322]
[1749369720271,3.48780947,2521.5,2521.4,0.36871126]
[1749369720568,4.03780947,2521.5,2521.4,4.33472836]
[1749369720771,4.03780947,2521.5,2521.4,4.18725382]
[1749369720972,4.03780947,2521.5,2521.4,4.18724888]
[1749369721148,4.03780947,2521.5,2521.4,4.3347026]
[1749369721353,3.7099205,2521.5,2521.4,3.9660506]
[1749369726464,3.1599205,2521.5,2521.4,3.9660506]
[1749369726816,2.4022205,2521.5,2521.4,3.9660506]
[1749369729702,2.4022205,2521.5,2521.4,8.01537748]
[1749369731425,2.4022205,2521.5,2521.4,8.94958336]
[1749369732625,2.4022205,2521.5,2521.4,4.90025648]
[1749369732827,2.4022205,2521.5,2521.4,6.06203531]
[1749369733179,2.4022205,2521.5,2521.4,4.90025648]
[1749369733478,2.4022205,2521.5,2521.4,6.45772695]
[1749369734129,2.4022205,2521.5,2521.4,10.50705383]
[1749369734332,2.4022205,2521.5,2521.4,8.01537748]
[1749369734648,2.4022205,2521.5,2521.4,9.57284795]
[1749369734989,2.4012205,2521.5,2521.4,9.57284795]
[1749369735191,2.4012205,2521.5,2521.4,8.01537748]
[1749369736120,2.4012205,2521.5,2521.4,15.08737748]
[1749369737043,0.3722205,2521.5,2521.4,31.08737748]
[1749369737229,2.4012205,2521.5,2521.4,33.45225111]
[1749369739113,0.55,2522.3,2521.4,33.45225111]
[1749369739114,1.04620321,2522.9,2522.5,4.75872111]
[1749369739375,1.04620321,2522.9,2522.5,31.89804799]
[1749369739512,1.04620321,2522.9,2522.5,23.11817038]
[1749369739716,1.04620321,2522.9,2522.5,27.87572111]
[1749369740070,1.04620321,2522.9,2522.5,19.96432111]
[1749369740225,18.18820321,2522.9,2522.5,5.14251303]
[1749369740568,18.18820321,2522.9,2522.5,3.96432111]
[1749369740744,18.18820321,2522.9,2522.5,11.10032111]
[1749369740908,2.2565999,2522.6,2522.5,11.10032111]
[1749369743542,2.2565999,2522.6,2522.5,11.09832111]
[1749369746249,2.2565999,2522.6,2522.5,11.09532111]
[1749369747065,2.2565999,2522.6,2522.5,11.09832111]
[1749369747247,2.48225989,2522.6,2522.5,3.96432111]
[1749369747430,2.48225989,2522.6,2522.5,11.09832111]
[1749369748316,2.48225989,2522.6,2522.5,3.96432111]
[1749369749046,2.48225989,2522.6,2522.4,11.09240876]
[1749369749248,2.48225989,2522.6,2521.9,4.36157679]
[1749369749548,2.48225989,2522.6,2522.0,7.125]
[1749369749741,0.32909599,2522.5,2522.3,3.96452816]
[1749369749920,0.32909599,2522.5,2522.4,3.96447827]
[1749369750315,0.32909599,2522.5,2521.6,16.0]
[1749369750316,0.32909599,2522.5,2521.7,3.96549062]
[1749369750523,0.7957,2522.4,2522.1,3.9649018]
[1749369750840,1.53026635,2522.4,2522.1,3.96492724]
[1749369751626,1.53026635,2522.4,2522.0,3.96506897]
[1749369751812,4.51463633,2522.3,2521.4,3.96590657]
[1749369752017,4.51463633,2522.3,2520.9,10.59807401]
[1749369752018,0.55,2522.1,2521.8,3.96540641]
[1749369752212,0.55,2522.1,2521.9,3.96526428]
[1749369752213,2.074,2522.0,2521.9,3.96526428]
[1749369752417,0.55,2522.1,2522.0,3.96510705]
[1749369752959,2.624,2522.1,2522.0,3.96510705]
[1749369753819,6.93099792,2522.1,2521.6,3.96563885]
[1749369754027,2.96597,2522.1,2521.6,3.96563885]
[1749369754336,2.96597,2522.1,2521.5,3.96585088]
[1749369754337,2.96597,2522.1,2521.7,3.96554962]
[1749369754651,2.96597,2522.1,2521.6,3.96573604]
[1749369754825,0.55,2521.9,2521.7,3.96554907]
[1749369755032,0.55,2521.9,2521.6,3.96571518]
[1749369755621,0.55,2521.9,2521.5,7.108]
[1749369755820,0.55,2522.0,2521.8,3.96542152]
[1749369756050,0.55,2522.0,2521.7,3.96550949]
[1749369756350,0.55,2522.0,2521.6,3.96565737]
[1749369756955,0.55,2522.0,2521.7,3.96556152]
[1749369757505,0.55,2522.0,2521.7,3.96557877]
[1749369757825,0.55,2522.0,2521.5,11.07374947]
[1749369758169,0.55,2522.0,2521.7,3.9654997]
[1749369758381,0.55,2522.0,2521.6,3.96571619]
[1749369758668,0.55,2522.0,2521.5,7.108]
[1749369758985,4.51512052,2522.0,2521.5,3.96582345]
[1749369759262,1.32265069,2522.0,2521.6,3.96572627]
[1749369760265,0.55,2521.8,2521.6,3.96572627]
[1749369761274,0.55,2521.8,2521.7,3.96557877]
[1749369761799,0.55,2521.8,2521.4,11.04802352]
[1749369762155,0.55,2521.8,2521.6,3.96572639]
[1749369762566,0.55,2521.8,2521.4,11.04802352]
[1749369762567,0.55,2521.8,2521.5,3.96580049]
[1749369763172,0.55,2521.8,2521.5,3.96588641]
[1749369763423,0.55,2521.8,2521.6,3.96573195]
[1749369763908,2.074,2521.7,2521.6,3.96573195]
[1749369764512,0.55,2521.8,2521.6,3.96573195]
[1749369764682,2.074,2521.7,2521.4,11.04794813]
[1749369765030,17.141,2521.6,2521.5,3.96578404]
[1749369767901,17.141,2521.6,2521.3,7.033]
[1749369768104,17.141,2521.6,2521.4,3.96597956]
[1749369768310,17.141,2521.6,2521.4,3.9660506]
[1749369768601,0.55,2521.5,2521.2,3.96627506]
[1749369768768,0.55,2521.3,2521.0,3.96667988]
[1749369768969,0.55,2521.3,2521.2,3.96636522]
[1749369769198,0.55,2521.3,2521.0,3.96667929]
[1749369769576,0.55,2521.3,2521.2,3.96636522]
[1749369769907,0.55,2521.3,2521.1,3.96646045]
[1749369770104,0.55,2521.3,2521.0,10.99159596]
[1749369770404,0.55,2521.3,2521.1,3.96651925]
[1749369771095,0.55,2521.3,2521.0,10.99159722]